[Event "*** Titled Tuesday Blitz"]
[Site "Chess.com"]
[Date "2021.04.20"]
[Round "9"]
[White "topin8"]
[Black "jannat65"]
[Result "1-0"]
[WhiteElo "2205"]
[BlackElo "2020"]
[TimeControl "180+1"]
[EndTime "11:43:56 PDT"]
[Termination "topin8 won by resignation"]

1. e4 {[%clk 0:03:00.9]} 1... c6 {[%clk 0:02:59]} 2. Nf3 {[%clk 0:02:57.8]} 2...
d5 {[%clk 0:02:57.1]} 3. Nc3 {[%clk 0:02:58]} 3... dxe4 {[%clk 0:02:56.4]} 4.
Nxe4 {[%clk 0:02:56.5]} 4... Bg4 {[%clk 0:02:56.9]} 5. d4 {[%clk 0:02:50.4]}
5... Bxf3 {[%clk 0:02:49.3]} 6. Qxf3 {[%clk 0:02:48.5]} 6... Qxd4 {[%clk
0:02:47.2]} 7. Bd3 {[%clk 0:02:48.2]} 7... Qd8 {[%clk 0:02:39.9]} 8. O-O {[%clk
0:02:45.2]} 8... Nd7 {[%clk 0:02:39.3]} 9. Re1 {[%clk 0:02:44.3]} 9... e6 {[%clk
0:02:38.9]} 10. Bf4 {[%clk 0:02:44]} 10... Nc5 {[%clk 0:02:31.2]} 11. Rad1
{[%clk 0:02:38.4]} 11... Nxe4 {[%clk 0:02:23.8]} 12. Bxe4 {[%clk 0:02:33.2]}
12... Qb6 {[%clk 0:02:23.8]} 13. Be3 {[%clk 0:02:18.8]} 13... Bc5 {[%clk
0:02:18.9]} 14. Qg3 {[%clk 0:02:00.7]} 14... Kf8 {[%clk 0:01:32]} 15. Rd7 {[%clk
0:01:40.4]} 15... Nf6 {[%clk 0:01:25.8]} 16. Bxc5+ {[%clk 0:01:19]} 16... Qxc5
{[%clk 0:01:26.7]} 17. Rxb7 {[%clk 0:01:15.8]} 17... Nxe4 {[%clk 0:01:21.6]} 18.
Rxe4 {[%clk 0:01:15.2]} 18... Qxc2 {[%clk 0:01:13.7]} 19. Re1 {[%clk 0:01:14.7]}
19... Qg6 {[%clk 0:01:06.7]} 20. Qc7 {[%clk 0:00:36.7]} 20... Re8 {[%clk
0:00:49.9]} 21. Qd6+ {[%clk 0:00:33.4]} 21... Kg8 {[%clk 0:00:46.3]} 22. Rb8
{[%clk 0:00:33.6]} 22... f6 {[%clk 0:00:31.5]} 23. Qxe6+ {[%clk 0:00:30.7]} 1-0

[Event "*** Titled Tuesday Blitz"]
[Site "Chess.com"]
[Date "2021.04.20"]
[Round "9"]
[White "CrushingKings"]
[Black "Kildepiotr"]
[Result "0-1"]
[WhiteElo "2505"]
[BlackElo "2643"]
[TimeControl "180+1"]
[EndTime "11:44:03 PDT"]
[Termination "Kildepiotr won on time"]

1. e4 {[%clk 0:02:42.2]} 1... g6 {[%clk 0:02:59.7]} 2. d4 {[%clk 0:02:42]} 2...
Bg7 {[%clk 0:03:00.3]} 3. Nc3 {[%clk 0:02:42.9]} 3... c6 {[%clk 0:03:00.5]} 4.
Nf3 {[%clk 0:02:37.2]} 4... d6 {[%clk 0:03:00.6]} 5. Be3 {[%clk 0:02:35.6]} 5...
Nf6 {[%clk 0:03:00.9]} 6. h3 {[%clk 0:02:35.5]} 6... O-O {[%clk 0:03:00.8]} 7.
Be2 {[%clk 0:02:35.4]} 7... Nbd7 {[%clk 0:02:59]} 8. O-O {[%clk 0:02:35.6]} 8...
Qc7 {[%clk 0:02:58.7]} 9. a4 {[%clk 0:02:35.7]} 9... e5 {[%clk 0:02:58.5]} 10.
dxe5 {[%clk 0:02:33.6]} 10... dxe5 {[%clk 0:02:58.7]} 11. Qb1 {[%clk 0:02:29.2]}
11... a5 {[%clk 0:02:57.5]} 12. Qa2 {[%clk 0:02:26.2]} 12... Nh5 {[%clk
0:02:52]} 13. Rad1 {[%clk 0:02:23.3]} 13... Nf4 {[%clk 0:02:50.6]} 14. Bc4
{[%clk 0:02:16.8]} 14... Nb6 {[%clk 0:02:50.3]} 15. Bc5 {[%clk 0:01:55.6]} 15...
Nxc4 {[%clk 0:02:40.5]} 16. Bxf8 {[%clk 0:01:55]} 16... Be6 {[%clk 0:02:39.9]}
17. Bxg7 {[%clk 0:01:49.8]} 17... Nd2 {[%clk 0:02:26.9]} 18. Rxd2 {[%clk
0:01:38.2]} 18... Bxa2 {[%clk 0:02:26.2]} 19. Bxe5 {[%clk 0:01:38.4]} 19... Qb6
{[%clk 0:02:09.3]} 20. Nxa2 {[%clk 0:01:12.3]} 20... Ne6 {[%clk 0:02:08.9]} 21.
Rfd1 {[%clk 0:01:07.2]} 21... Re8 {[%clk 0:02:01.2]} 22. Nc3 {[%clk 0:01:05.9]}
22... Rd8 {[%clk 0:01:52.4]} 23. Rxd8+ {[%clk 0:00:56.2]} 23... Nxd8 {[%clk
0:01:53.3]} 24. Bf6 {[%clk 0:00:53.9]} 24... Ne6 {[%clk 0:01:53.3]} 25. Ng5
{[%clk 0:00:53.2]} 25... h6 {[%clk 0:01:48.4]} 26. Nxe6 {[%clk 0:00:51]} 26...
fxe6 {[%clk 0:01:49.3]} 27. Ne2 {[%clk 0:00:44.3]} 27... Qb4 {[%clk 0:01:44.4]}
28. e5 {[%clk 0:00:19.2]} 28... Qxb2 {[%clk 0:01:35.8]} 29. Rd8+ {[%clk
0:00:19.2]} 29... Kf7 {[%clk 0:01:35.6]} 30. Rd7+ {[%clk 0:00:19.1]} 30... Kf8
{[%clk 0:01:35.9]} 31. Kh2 {[%clk 0:00:14.9]} 31... Qxc2 {[%clk 0:01:28.5]} 32.
Nf4 {[%clk 0:00:12.8]} 32... Qf5 {[%clk 0:01:28.4]} 33. g3 {[%clk 0:00:08.9]}
33... g5 {[%clk 0:01:27.1]} 34. Nd3 {[%clk 0:00:07.2]} 34... b5 {[%clk 0:01:24]}
35. axb5 {[%clk 0:00:06.8]} 35... cxb5 {[%clk 0:01:24.1]} 36. g4 {[%clk
0:00:04.4]} 36... Qf3 {[%clk 0:01:16.8]} 37. Kg1 {[%clk 0:00:02.9]} 37... Qxh3
{[%clk 0:01:14]} 38. Nc5 {[%clk 0:00:03.3]} 38... Qxg4+ {[%clk 0:01:13.6]} 39.
Kh2 {[%clk 0:00:02.4]} 39... a4 {[%clk 0:01:07.6]} 0-1

[Event "*** Titled Tuesday Blitz"]
[Site "Chess.com"]
[Date "2021.04.20"]
[Round "9"]
[White "korbul"]
[Black "crazy_but_lazy"]
[Result "1-0"]
[WhiteElo "2587"]
[BlackElo "2437"]
[TimeControl "180+1"]
[EndTime "11:44:06 PDT"]
[Termination "korbul won by resignation"]

1. e4 {[%clk 0:03:00.9]} 1... c6 {[%clk 0:03:00]} 2. Nf3 {[%clk 0:03:00.2]} 2...
d5 {[%clk 0:03:00.9]} 3. Nc3 {[%clk 0:03:00.4]} 3... Bg4 {[%clk 0:03:00.7]} 4.
h3 {[%clk 0:02:59.9]} 4... Bxf3 {[%clk 0:03:00.8]} 5. Qxf3 {[%clk 0:02:59.5]}
5... e6 {[%clk 0:02:59.9]} 6. d3 {[%clk 0:02:59.1]} 6... Nd7 {[%clk 0:02:52.8]}
7. g3 {[%clk 0:02:58.8]} 7... g6 {[%clk 0:02:52.4]} 8. Bg2 {[%clk 0:02:58.3]}
8... Bg7 {[%clk 0:02:52.1]} 9. O-O {[%clk 0:02:57.6]} 9... Ne7 {[%clk
0:02:51.4]} 10. Qe2 {[%clk 0:02:56.8]} 10... O-O {[%clk 0:02:51]} 11. h4 {[%clk
0:02:56.2]} 11... h5 {[%clk 0:02:40.1]} 12. Bg5 {[%clk 0:02:53.3]} 12... Re8
{[%clk 0:02:20]} 13. a3 {[%clk 0:02:42.9]} 13... Qb6 {[%clk 0:02:19.1]} 14. Rab1
{[%clk 0:02:41.8]} 14... d4 {[%clk 0:02:04.9]} 15. Nd1 {[%clk 0:02:31.1]} 15...
c5 {[%clk 0:01:53.1]} 16. f3 {[%clk 0:02:29.5]} 16... Rac8 {[%clk 0:01:48.1]}
17. Nf2 {[%clk 0:02:26]} 17... Qc6 {[%clk 0:01:07.7]} 18. g4 {[%clk 0:02:24.3]}
18... hxg4 {[%clk 0:00:57.5]} 19. fxg4 {[%clk 0:02:23.7]} 19... Ne5 {[%clk
0:00:55.7]} 20. Bf4 {[%clk 0:02:12.5]} 20... c4 {[%clk 0:00:54.5]} 21. h5 {[%clk
0:02:06.6]} 21... cxd3 {[%clk 0:00:49.6]} 22. cxd3 {[%clk 0:02:05.2]} 22... Qc2
{[%clk 0:00:50]} 23. Rfe1 {[%clk 0:02:03.1]} 23... Qxe2 {[%clk 0:00:43.5]} 24.
Rxe2 {[%clk 0:02:02.8]} 24... N7c6 {[%clk 0:00:43.3]} 25. Rc2 {[%clk 0:01:50.4]}
25... Kh7 {[%clk 0:00:39.9]} 26. Rbc1 {[%clk 0:01:49.6]} 26... gxh5 {[%clk
0:00:33.2]} 27. gxh5 {[%clk 0:01:47.8]} 27... Bh6 {[%clk 0:00:33.8]} 28. Bxh6
{[%clk 0:01:40.8]} 28... Kxh6 {[%clk 0:00:34.7]} 29. Rc5 {[%clk 0:01:32.8]}
29... Rg8 {[%clk 0:00:30.7]} 30. Kf1 {[%clk 0:01:31.7]} 30... Rcf8 {[%clk
0:00:26.2]} 31. b4 {[%clk 0:01:29.4]} 31... a6 {[%clk 0:00:23.2]} 32. a4 {[%clk
0:01:28.4]} 32... Rg5 {[%clk 0:00:10.5]} 33. b5 {[%clk 0:01:22.7]} 33... axb5
{[%clk 0:00:11.4]} 34. axb5 {[%clk 0:01:22.3]} 34... Nb4 {[%clk 0:00:11.4]} 35.
Nh3 {[%clk 0:01:14]} 35... Rxh5 {[%clk 0:00:11.9]} 36. Nf4 {[%clk 0:01:13.7]}
36... Rg5 {[%clk 0:00:12.5]} 37. Ke2 {[%clk 0:01:03.4]} 37... Ng4 {[%clk
0:00:10.7]} 38. Rh1+ {[%clk 0:01:00.2]} 38... Kg7 {[%clk 0:00:06.9]} 39. Rxg5+
{[%clk 0:00:59.5]} 39... Kf6 {[%clk 0:00:07.8]} 1-0

[Event "*** Titled Tuesday Blitz"]
[Site "Chess.com"]
[Date "2021.04.20"]
[Round "9"]
[White "Steegersee"]
[Black "kidagent"]
[Result "0-1"]
[WhiteElo "2228"]
[BlackElo "2340"]
[TimeControl "180+1"]
[EndTime "11:44:09 PDT"]
[Termination "kidagent won by checkmate"]

1. c4 {[%clk 0:02:47.4]} 1... c6 {[%clk 0:02:59.4]} 2. Nf3 {[%clk 0:02:44.9]}
2... d5 {[%clk 0:02:58.8]} 3. e3 {[%clk 0:02:45.5]} 3... Nf6 {[%clk 0:02:58.1]}
4. b3 {[%clk 0:02:46]} 4... Bg4 {[%clk 0:02:56.2]} 5. Bb2 {[%clk 0:02:45.8]}
5... e6 {[%clk 0:02:56.4]} 6. Be2 {[%clk 0:02:44]} 6... Nbd7 {[%clk 0:02:56.3]}
7. O-O {[%clk 0:02:43.5]} 7... Bd6 {[%clk 0:02:55.4]} 8. Nc3 {[%clk 0:02:33.9]}
8... O-O {[%clk 0:02:53.8]} 9. Qc2 {[%clk 0:02:31.4]} 9... Qe7 {[%clk
0:02:47.5]} 10. h3 {[%clk 0:02:15.9]} 10... Bh5 {[%clk 0:02:45.8]} 11. d4 {[%clk
0:01:53.2]} 11... e5 {[%clk 0:02:40.7]} 12. cxd5 {[%clk 0:01:41.3]} 12... cxd5
{[%clk 0:02:33]} 13. Nxe5 {[%clk 0:01:25.6]} 13... Nxe5 {[%clk 0:02:28.9]} 14.
dxe5 {[%clk 0:01:03.9]} 14... Qxe5 {[%clk 0:02:28.2]} 15. g3 {[%clk 0:01:03.7]}
15... Bg6 {[%clk 0:02:22.9]} 16. Qd2 {[%clk 0:00:59.2]} 16... Qe6 {[%clk
0:02:10.8]} 17. Kg2 {[%clk 0:00:49.9]} 17... Rad8 {[%clk 0:02:05.3]} 18. Nb5
{[%clk 0:00:43.3]} 18... Bb8 {[%clk 0:02:04.1]} 19. Nd4 {[%clk 0:00:33.2]} 19...
Qe7 {[%clk 0:01:55.1]} 20. Bf3 {[%clk 0:00:30.9]} 20... Rfe8 {[%clk 0:01:54.1]}
21. Rac1 {[%clk 0:00:29.7]} 21... Be4 {[%clk 0:01:48.6]} 22. a3 {[%clk
0:00:21.4]} 22... a6 {[%clk 0:01:44.5]} 23. b4 {[%clk 0:00:20.2]} 23... Nd7
{[%clk 0:01:32]} 24. Bxe4 {[%clk 0:00:18.9]} 24... dxe4 {[%clk 0:01:30]} 25. Qc2
{[%clk 0:00:15.7]} 25... Qg5 {[%clk 0:01:15]} 26. Qb3 {[%clk 0:00:11.3]} 26...
Ne5 {[%clk 0:01:13.3]} 27. h4 {[%clk 0:00:10.7]} 27... Qg6 {[%clk 0:01:12.1]}
28. Qd1 {[%clk 0:00:10.9]} 28... Nf3 {[%clk 0:01:09.4]} 29. Kh1 {[%clk
0:00:09.8]} 29... Qg4 {[%clk 0:01:05.8]} 30. Kg2 {[%clk 0:00:06.9]} 30... Nxh4+
{[%clk 0:01:05.1]} 31. Kh2 {[%clk 0:00:06.8]} 31... Nf3+ {[%clk 0:01:03.9]} 32.
Kg2 {[%clk 0:00:07.2]} 32... Rd6 {[%clk 0:01:01.7]} 33. Qe2 {[%clk 0:00:06.7]}
33... Rxd4 {[%clk 0:00:58.8]} 34. Bxd4 {[%clk 0:00:06.2]} 34... Nh4+ {[%clk
0:00:58.5]} 35. Kg1 {[%clk 0:00:04]} 35... Qxe2 {[%clk 0:00:59.4]} 36. gxh4
{[%clk 0:00:04]} 36... Qg4+ {[%clk 0:00:57.2]} 37. Kh1 {[%clk 0:00:02]} 37...
Qh3+ {[%clk 0:00:57.6]} 38. Kg1 {[%clk 0:00:01.9]} 38... Qh2# {[%clk 0:00:58.1]}
0-1

[Event "*** Titled Tuesday Blitz"]
[Site "Chess.com"]
[Date "2021.04.20"]
[Round "9"]
[White "KonstantinB_1983"]
[Black "Nuvas"]
[Result "0-1"]
[WhiteElo "2513"]
[BlackElo "2644"]
[TimeControl "180+1"]
[EndTime "11:44:11 PDT"]
[Termination "Nuvas won by resignation"]

1. d4 {[%clk 0:03:00.9]} 1... Nf6 {[%clk 0:02:59.5]} 2. c4 {[%clk 0:03:00.6]}
2... g6 {[%clk 0:02:59.9]} 3. Nc3 {[%clk 0:03:00.5]} 3... d5 {[%clk 0:03:00.2]}
4. cxd5 {[%clk 0:02:59.4]} 4... Nxd5 {[%clk 0:03:00.6]} 5. e4 {[%clk 0:02:59.9]}
5... Nxc3 {[%clk 0:03:00.9]} 6. bxc3 {[%clk 0:03:00.2]} 6... Bg7 {[%clk
0:03:01.4]} 7. Bc4 {[%clk 0:03:00.6]} 7... c5 {[%clk 0:03:01.3]} 8. Ne2 {[%clk
0:03:00.9]} 8... Nc6 {[%clk 0:03:01.3]} 9. Be3 {[%clk 0:03:01.2]} 9... O-O
{[%clk 0:03:01.4]} 10. h4 {[%clk 0:03:00]} 10... cxd4 {[%clk 0:02:51]} 11. cxd4
{[%clk 0:02:59]} 11... Qa5+ {[%clk 0:02:50.9]} 12. Kf1 {[%clk 0:02:58.4]} 12...
b5 {[%clk 0:02:40.2]} 13. Bd5 {[%clk 0:02:55.7]} 13... Bb7 {[%clk 0:02:38.2]}
14. h5 {[%clk 0:02:55.1]} 14... e6 {[%clk 0:02:38.4]} 15. Bb3 {[%clk 0:02:48]}
15... Rfd8 {[%clk 0:02:35.6]} 16. hxg6 {[%clk 0:02:39.7]} 16... hxg6 {[%clk
0:02:35.2]} 17. f3 {[%clk 0:02:33.1]} 17... Rac8 {[%clk 0:02:26.4]} 18. Kf2
{[%clk 0:02:30.2]} 18... Qb4 {[%clk 0:02:15.3]} 19. a3 {[%clk 0:02:24.3]} 19...
Qe7 {[%clk 0:02:15]} 20. Qd2 {[%clk 0:02:11.3]} 20... Ne5 {[%clk 0:02:10.8]} 21.
Bg5 {[%clk 0:02:04]} 21... f6 {[%clk 0:01:59.8]} 22. Bh6 {[%clk 0:02:02.2]}
22... Nc4 {[%clk 0:01:59.7]} 23. Qf4 {[%clk 0:01:55.8]} 23... g5 {[%clk
0:01:51.4]} 24. Qh2 {[%clk 0:01:53.5]} 24... Bc6 {[%clk 0:00:34.8]} 25. a4
{[%clk 0:01:40.5]} 25... a6 {[%clk 0:00:34.8]} 26. Rac1 {[%clk 0:01:32.9]} 26...
Be8 {[%clk 0:00:34.6]} 27. axb5 {[%clk 0:01:30.2]} 27... axb5 {[%clk 0:00:34.5]}
28. f4 {[%clk 0:01:12.9]} 28... Bxh6 {[%clk 0:00:29]} 29. Qxh6 {[%clk 0:01:11]}
29... Qg7 {[%clk 0:00:29.6]} 30. fxg5 {[%clk 0:01:08.8]} 30... fxg5 {[%clk
0:00:27.6]} 31. Qxe6+ {[%clk 0:01:07.6]} 31... Bf7 {[%clk 0:00:27.8]} 32. Qh6
{[%clk 0:00:48.1]} 32... Rf8 {[%clk 0:00:21.1]} 33. Kg3 {[%clk 0:00:42.5]} 33...
Qxh6 {[%clk 0:00:19.8]} 34. Rxh6 {[%clk 0:00:41.3]} 34... Kg7 {[%clk 0:00:20.5]}
35. Rb6 {[%clk 0:00:40.1]} 35... Nxb6 {[%clk 0:00:20.1]} 36. Rd1 {[%clk
0:00:39]} 36... Bxb3 {[%clk 0:00:19.8]} 0-1

[Event "*** Titled Tuesday Blitz"]
[Site "Chess.com"]
[Date "2021.04.20"]
[Round "9"]
[White "gumimis"]
[Black "alexgo05"]
[Result "1-0"]
[WhiteElo "2349"]
[BlackElo "2456"]
[TimeControl "180+1"]
[EndTime "11:44:12 PDT"]
[Termination "gumimis won by resignation"]

1. e4 {[%clk 0:03:00.9]} 1... c6 {[%clk 0:03:00.1]} 2. d4 {[%clk 0:02:59.9]}
2... g6 {[%clk 0:02:59.9]} 3. Nc3 {[%clk 0:03:00.8]} 3... d5 {[%clk 0:02:59.8]}
4. Nf3 {[%clk 0:02:51.9]} 4... Bg7 {[%clk 0:02:59.3]} 5. Be3 {[%clk 0:02:46]}
5... Bg4 {[%clk 0:02:57.1]} 6. Be2 {[%clk 0:02:45.2]} 6... Nh6 {[%clk
0:02:32.7]} 7. h3 {[%clk 0:02:12.7]} 7... Bxf3 {[%clk 0:02:32.2]} 8. Bxf3 {[%clk
0:02:09.8]} 8... dxe4 {[%clk 0:02:32.7]} 9. Bxe4 {[%clk 0:02:09.3]} 9... Qd7
{[%clk 0:02:14.3]} 10. g4 {[%clk 0:02:07.9]} 10... Ng8 {[%clk 0:02:12.6]} 11. g5
{[%clk 0:02:03.2]} 11... h6 {[%clk 0:02:09.3]} 12. f4 {[%clk 0:01:59.2]} 12...
hxg5 {[%clk 0:02:08.6]} 13. fxg5 {[%clk 0:02:00.1]} 13... Rxh3 {[%clk
0:02:09.2]} 14. Rxh3 {[%clk 0:01:56]} 14... Qxh3 {[%clk 0:02:10.1]} 15. Qd2
{[%clk 0:01:50.7]} 15... Qh4+ {[%clk 0:01:48]} 16. Bf2 {[%clk 0:01:49.6]} 16...
Qg4 {[%clk 0:01:48.6]} 17. Qe3 {[%clk 0:01:37.7]} 17... Na6 {[%clk 0:01:11]} 18.
Bf3 {[%clk 0:01:35.4]} 18... Qf5 {[%clk 0:01:11.1]} 19. O-O-O {[%clk 0:01:33.6]}
19... e6 {[%clk 0:00:57.6]} 20. d5 {[%clk 0:01:29.5]} 20... Nb4 {[%clk
0:00:39.3]} 21. Be4 {[%clk 0:01:24.7]} 21... Qe5 {[%clk 0:00:39.5]} 22. dxc6
{[%clk 0:01:19.9]} 22... Nxa2+ {[%clk 0:00:38.6]} 23. Nxa2 {[%clk 0:01:14.9]}
23... Qxb2+ {[%clk 0:00:38.7]} 24. Kd2 {[%clk 0:01:15.4]} 24... Qxa2 {[%clk
0:00:30.5]} 25. cxb7 {[%clk 0:01:15.2]} 25... Rd8+ {[%clk 0:00:30.1]} 26. Ke2
{[%clk 0:01:08.3]} 26... Qa6+ {[%clk 0:00:30.1]} 27. Kf3 {[%clk 0:01:03.8]}
27... Be5 {[%clk 0:00:15.2]} 28. Rxd8+ {[%clk 0:00:48.3]} 28... Kxd8 {[%clk
0:00:16.1]} 29. Qc5 {[%clk 0:00:47.2]} 29... Ne7 {[%clk 0:00:05.3]} 30. Qxe5
{[%clk 0:00:42.4]} 30... Nc6 {[%clk 0:00:03.3]} 31. Qd6+ {[%clk 0:00:40.5]}
31... Ke8 {[%clk 0:00:03.2]} 32. Bxc6+ {[%clk 0:00:39.8]} 1-0

[Event "*** Titled Tuesday Blitz"]
[Site "Chess.com"]
[Date "2021.04.20"]
[Round "9"]
[White "volunteers1998"]
[Black "A-S-00"]
[Result "1-0"]
[WhiteElo "2204"]
[BlackElo "2313"]
[TimeControl "180+1"]
[EndTime "11:44:13 PDT"]
[Termination "volunteers1998 won by resignation"]

1. e4 {[%clk 0:03:00.9]} 1... e6 {[%clk 0:02:49.4]} 2. Nf3 {[%clk 0:02:59.8]}
2... d5 {[%clk 0:02:45.2]} 3. Nc3 {[%clk 0:02:58.8]} 3... d4 {[%clk 0:02:35]} 4.
Ne2 {[%clk 0:02:56.4]} 4... c5 {[%clk 0:02:34.4]} 5. c3 {[%clk 0:02:54.1]} 5...
Nc6 {[%clk 0:02:31.8]} 6. cxd4 {[%clk 0:02:51.7]} 6... cxd4 {[%clk 0:02:31.6]}
7. Qa4 {[%clk 0:02:49.3]} 7... Bc5 {[%clk 0:02:25.3]} 8. b4 {[%clk 0:02:45.5]}
8... Bxb4 {[%clk 0:01:55.2]} 9. Nexd4 {[%clk 0:02:42.4]} 9... Be7 {[%clk
0:01:49.8]} 10. Bb5 {[%clk 0:02:38.3]} 10... Bd7 {[%clk 0:01:25.6]} 11. Nxc6
{[%clk 0:02:35.1]} 11... bxc6 {[%clk 0:01:25.3]} 12. Bxc6 {[%clk 0:02:32.5]}
12... Rc8 {[%clk 0:01:23.6]} 13. Bxd7+ {[%clk 0:02:28.9]} 13... Qxd7 {[%clk
0:01:23.9]} 14. Qxd7+ {[%clk 0:02:27.5]} 14... Kxd7 {[%clk 0:01:24.8]} 15. Ne5+
{[%clk 0:02:23.5]} 15... Ke8 {[%clk 0:01:24.6]} 16. O-O {[%clk 0:02:17.9]} 16...
Nf6 {[%clk 0:01:24.3]} 17. d3 {[%clk 0:02:09.5]} 17... Bd6 {[%clk 0:01:16.9]}
18. Nc4 {[%clk 0:02:06.3]} 18... Bb8 {[%clk 0:01:14.9]} 19. Rb1 {[%clk
0:02:00.7]} 19... Nd7 {[%clk 0:00:56.2]} 20. Be3 {[%clk 0:01:56.1]} 20... a6
{[%clk 0:00:37.2]} 21. Rfc1 {[%clk 0:01:50.1]} 21... Ke7 {[%clk 0:00:33.4]} 22.
g3 {[%clk 0:01:42.8]} 22... Rhd8 {[%clk 0:00:21.1]} 23. Kf1 {[%clk 0:01:30.9]}
23... Ne5 {[%clk 0:00:18.7]} 24. Nxe5 {[%clk 0:01:21.4]} 24... Rxc1+ {[%clk
0:00:17.9]} 25. Rxc1 {[%clk 0:01:15.7]} 25... Bxe5 {[%clk 0:00:18.8]} 26. Rc6
{[%clk 0:01:12.1]} 26... Rxd3 {[%clk 0:00:18]} 27. Rxa6 {[%clk 0:01:09.4]} 27...
Rd1+ {[%clk 0:00:18.3]} 28. Ke2 {[%clk 0:01:06.5]} 28... Ra1 {[%clk 0:00:18.7]}
29. Ra7+ {[%clk 0:01:03.9]} 29... Kf6 {[%clk 0:00:17.3]} 30. f4 {[%clk
0:01:00.8]} 30... Bb2 {[%clk 0:00:16.2]} 31. Kd3 {[%clk 0:00:59.1]} 31... Rh1
{[%clk 0:00:09.6]} 32. a4 {[%clk 0:00:55]} 32... Rxh2 {[%clk 0:00:09.8]} 33. Rb7
{[%clk 0:00:52.1]} 33... h5 {[%clk 0:00:07.7]} 34. Rxb2 {[%clk 0:00:47.5]} 1-0

[Event "*** Titled Tuesday Blitz"]
[Site "Chess.com"]
[Date "2021.04.20"]
[Round "9"]
[White "Murad_Ibrahimli"]
[Black "Nikolaj_6"]
[Result "1-0"]
[WhiteElo "2750"]
[BlackElo "2617"]
[TimeControl "180+1"]
[EndTime "11:44:18 PDT"]
[Termination "Murad_Ibrahimli won by resignation"]

1. Nf3 {[%clk 0:03:00.9]} 1... Nf6 {[%clk 0:02:59.5]} 2. b4 {[%clk 0:03:01.2]}
2... a5 {[%clk 0:02:58.4]} 3. b5 {[%clk 0:03:00.7]} 3... b6 {[%clk 0:02:56.9]}
4. Bb2 {[%clk 0:03:00.2]} 4... Bb7 {[%clk 0:02:57.2]} 5. e3 {[%clk 0:02:58]}
5... g6 {[%clk 0:02:57.1]} 6. Be2 {[%clk 0:02:55.5]} 6... Bg7 {[%clk 0:02:57.2]}
7. c4 {[%clk 0:02:55.5]} 7... O-O {[%clk 0:02:56.2]} 8. O-O {[%clk 0:02:54.2]}
8... c5 {[%clk 0:02:55]} 9. bxc6 {[%clk 0:02:53.1]} 9... dxc6 {[%clk 0:02:53.3]}
10. d4 {[%clk 0:02:51.8]} 10... Nbd7 {[%clk 0:02:41.8]} 11. Nc3 {[%clk
0:02:50.8]} 11... e6 {[%clk 0:02:38.4]} 12. Rb1 {[%clk 0:02:48.7]} 12... c5
{[%clk 0:02:36.7]} 13. d5 {[%clk 0:02:48.6]} 13... exd5 {[%clk 0:02:36.3]} 14.
cxd5 {[%clk 0:02:49.5]} 14... Re8 {[%clk 0:02:28.2]} 15. Bb5 {[%clk 0:02:44.3]}
15... Ba6 {[%clk 0:02:16.6]} 16. Bxa6 {[%clk 0:02:41.3]} 16... Rxa6 {[%clk
0:02:17.5]} 17. Qd3 {[%clk 0:02:41.5]} 17... Ra8 {[%clk 0:02:15.7]} 18. h3
{[%clk 0:02:40.3]} 18... Qe7 {[%clk 0:02:02.4]} 19. Nd2 {[%clk 0:02:28.4]} 19...
Ne5 {[%clk 0:02:00.5]} 20. Qb5 {[%clk 0:02:28.7]} 20... Rab8 {[%clk 0:01:54.8]}
21. e4 {[%clk 0:02:20.7]} 21... Nh5 {[%clk 0:01:26.3]} 22. f4 {[%clk 0:02:14]}
22... Ng4 {[%clk 0:01:18.1]} 23. Na4 {[%clk 0:01:50.1]} 23... Ne3 {[%clk
0:00:57]} 24. Rf3 {[%clk 0:01:39.8]} 24... Bd4 {[%clk 0:00:55.5]} 25. Bxd4
{[%clk 0:01:09.1]} 25... cxd4 {[%clk 0:00:56.4]} 26. Qd3 {[%clk 0:01:09]} 26...
f5 {[%clk 0:00:45]} 27. Qxd4 {[%clk 0:00:58.4]} 27... fxe4 {[%clk 0:00:43.6]}
28. Rxe3 {[%clk 0:00:57.7]} 28... Nxf4 {[%clk 0:00:42.7]} 29. Nxe4 {[%clk
0:00:53.9]} 29... Rf8 {[%clk 0:00:31.5]} 30. d6 {[%clk 0:00:52]} 30... Qh4
{[%clk 0:00:30.4]} 31. Nac3 {[%clk 0:00:45.5]} 31... Rbe8 {[%clk 0:00:27.4]} 32.
d7 {[%clk 0:00:40]} 32... Rd8 {[%clk 0:00:27.5]} 33. Nd5 {[%clk 0:00:40.1]}
33... Nxd5 {[%clk 0:00:25]} 34. Qxd5+ {[%clk 0:00:41]} 34... Kg7 {[%clk
0:00:24]} 35. Rxb6 {[%clk 0:00:36.7]} 35... Rf4 {[%clk 0:00:19.9]} 36. Qe5+
{[%clk 0:00:35.9]} 36... Kh6 {[%clk 0:00:19.4]} 37. g3 {[%clk 0:00:31]} 1-0